Cogmind - Beta 15 @@@ ROGUE MODE // 2025.05.20 @ 14:50:02 Player: Cinder Result: Self-destructed Performance ------------- Evolutions (1) 500 Regions Visited (2) 400 Robots Destroyed (10) 50 Value Destroyed (209) 209 Prototype IDs (0) 0 Alien Tech Used (0) 0 Bonus (0) 0 TOTAL SCORE: 1159 Bonus ------- None Cogmind --------- Core Integrity 317/400 Matter 300/300 Energy 125/125 System Corruption 0% Temperature Cool (6) Movement Core (450) Ox8 Location -9/Materials Parts ------- > --- POWER (1) -------- Light Ion Engine > --- PROPULSION (4) --- Light Treads Light Treads Aluminum Leg > --- UTILITY (2) ------ Large Storage Unit Visual Processing Unit > --- WEAPON (2) ------- Medium Laser > --- INVENTORY (15) --- Light Ion Engine Light Ion Engine Wheel Wheel Flight Unit Flight Unit Flight Unit Flight Unit Improved Flight Unit Large Storage Unit ECM Suite Propulsion Shielding EM Pulse Gun Medium Laser Heavy Assault Rifle Peak State ------------ > --- POWER ------------ Light Ion Engine > --- PROPULSION ------- Light Treads Light Treads Aluminum Leg Aluminum Leg > --- UTILITY ---------- Large Storage Unit Visual Processing Unit > --- WEAPON ----------- EM Pulse Gun Medium Laser > --- INVENTORY -------- Light Ion Engine Light Ion Engine Wheel Wheel Flight Unit Flight Unit Flight Unit Flight Unit Large Storage Unit Propulsion Shielding EM Pulse Gun Medium Laser Light Assault Rifle [Rating: 11] Favorites ----------- Power Light Ion Engine Engine Light Ion Engine Propulsion Light Treads Treads Light Treads Leg Aluminum Leg Wheel Wheel Utility Large Storage Unit Storage Large Storage Unit Processor Visual Processing Unit Weapon Medium Laser Energy Gun Medium Laser Build | -11 -10 -9 ------- Run | Yrd Mat Mat Slots Evolved 2 | . . 2 Power . | . . . Propulsion 2 | . . 2 Utility . | . . . Weapon . | . . . Parts Attached 13 | 6 2 5 Power 1 | 1 . . Engine 1 | 1 . . Core . | . . . Reactor . | . . . Propulsion 6 | 2 1 3 Treads 2 | 1 1 . Leg 3 | . . 3 Wheel 1 | 1 . . Hover . | . . . Flight . | . . . Utility 3 | 1 1 1 Device . | . . . Storage 2 | 1 1 . Processor 1 | . . 1 Hackware . | . . . Protection . | . . . Artifact . | . . . Weapon 3 | 2 . 1 Energy Gun 3 | 2 . 1 Energy Cannon . | . . . Ballistic Gun . | . . . Ballistic Cannon . | . . . Launcher . | . . . Special Weapon . | . . . Impact Weapon . | . . . Slashing Weapon . | . . . Piercing Weapon . | . . . Special Melee Weapon . | . . . Unidentified Prototypes . | . . . Parts Lost 2 | . . 2 Power . | . . . Propulsion 1 | . . 1 Utility . | . . . Weapon 1 | . . 1 Highest Loss Streak 2 | . . 2 To Critical Strikes . | . . . Average Backups 10 | 5 10 14 Power 1 | . 1 2 Propulsion 5 | 3 5 7 Utility 1 | . 1 2 Weapon 2 | . 1 3 Tool/Special . | . . . Unused Backups 14 | . . 14 Power 2 | . . 2 Propulsion 6 | . . 6 Utility 3 | . . 3 Weapon 3 | . . 3 Tool/Special . | . . . Average Slot Usage (%) 87 | . 83 92 Engine 12 | . 14 11 Treads 24 | . 26 22 Leg 8 | . . 17 Storage 12 | . 14 11 Processor 4 | . . 9 Energy Gun 24 | . 28 21 Peak Build Rating 11 | 5 7 11 Average Rating 7 | 3 6 10 On Entrance 4 | . 5 7 Naked Turns . | . . . Heaviest Build 27 | 12 27 27 Greatest Support 40 | 20 40 40 Greatest Overweight (x) 2 | . . 2 Average Overweight (x) . | . . . Largest Inventory Capacity 15 | 8 15 15 Average Capacity 13 | 7 14 15 Most Carried 15 | 8 15 15 Average Carried 10 | 5 10 14 Final Capacity 15 | 8 15 15 Final Carried 15 | 7 15 15 Class Distribution -------------------- 100% | Mutant Dominant Class ---------------- Mutant | -10/Materials Mutant | -9/Materials Resources | -11 -10 -9 ----------- Run | Yrd Mat Mat Matter Collected 330 | 192 88 50 Remotely . | . . . Salvage Created 301 | . 52 249 Parts 16 | . 3 13 Haulers Intercepted . | . . . Recyclers Shooed . | . . . Parts Field Recycled . | . . . Retrieved Matter . | . . . Parts Self-Destructed . | . . . Prevented . | . . . Kills | -11 -10 -9 ------- Run | Yrd Mat Mat Combat Hostiles Destroyed 7 | . 3 4 Guns 7 | . 3 4 Classes Destroyed 6 | . 1 5 Worker 1 | . . 1 Builder 1 | . . 1 Watcher 1 | . . 1 Swarmer 3 | . 3 . Grunt 3 | . . 3 Sentry 1 | . . 1 Best Kill Streak 5 | . 3 5 Combat Bots Only 3 | . 3 2 Max Kills in Single Turn 3 | . 2 3 Gunslinging 1 | . 1 . Exploded . | . . . Melee . | . . . Uniques/NPCs Destroyed . | . . . Combat | -11 -10 -9 -------- Run | Yrd Mat Mat Hostile Shots Fired 60 | . 6 54 Missed 19 | . 1 18 Hits 41 | . 5 36 Projectile 41 | . 5 36 Damage Taken 660 | . 35 625 Core 89 | . 6 83 Absorbed by Shields . | . . . Core Remaining (%) 98 | 100 97 . Volleys Fired 19 | . 2 17 Largest 2 | . 2 2 Hottest 90 | . 90 90 Shots Fired 38 | . 4 34 Gun 38 | . 4 34 Cannon . | . . . Launcher . | . . . Special . | . . . Kinetic . | . . . Thermal 19 | . 2 17 Explosive . | . . . Electromagnetic 19 | . 2 17 Robot Hit Streak 12 | . 3 12 Robot Miss Streak 2 | . . 2 Penetration Max . | . . . Secondary Targets 1 | . 1 . Max Gunslinging Chain 1 | . 1 . Shots Hit Robots 28 | . 3 25 Core Hits 14 | . 3 11 Critical Kills . | . . . Critical Parts Destroyed . | . . . Critical Strikes 1 | . . 1 Corrupt 1 | . . 1 Melee Attacks . | . . . Impact . | . . . Slashing . | . . . Piercing . | . . . Sneak Attacks . | . . . Combat Hostiles . | . . . Follow-up Attacks . | . . . Damage Inflicted 477 | . 35 442 Guns 363 | . 35 328 Cannons . | . . . Explosions 114 | . . 114 Melee . | . . . Ramming . | . . . Kinetic . | . . . Thermal 250 | . 13 237 Explosive . | . . . Electromagnetic 227 | . 22 205 Impact . | . . . Slashing . | . . . Piercing . | . . . Highest Corruption . | . . . Average Corruption . | . . . Corruption Purged . | . . . Corruption Blocked . | . . . Overload Shots . | . . . Overflow Damage . | . . . Projectiles . | . . . Explosions . | . . . Melee . | . . . Knockbacks . | . . . Impact . | . . . Kinetic . | . . . Secondary . | . . . Self-Inflicted Damage 71 | . . 71 Shots 2 | . . 2 Rammed . | . . . Targets Rammed . | . . . Kicked . | . . . Crushed . | . . . Highest Temperature 180 | . 60 180 Average Temperature 68 | . 31 72 Received Heat Transfer 189 | . . 189 Siege Activations . | . . . Martial Activations . | . . . Shielding Activations . | . . . Robots Disrupted . | . . . Combat Hostiles . | . . . Robots Corrupted . | . . . Combat Hostiles . | . . . Parts Fried . | . . . Impact Corruptions . | . . . Robots Melted . | . . . Combat Hostiles . | . . . Parts Melted 1 | . . 1 Heat Transferred 557 | . 37 520 Parts Sabotaged . | . . . Parts Stolen . | . . . Parts Stripped . | . . . Power Chain Reactions 2 | . . 2 Alert | -11 -10 -9 ------- Run | Yrd Mat Mat Maximum Alert Level . | . . . Low Security (%) 100 | 100 100 100 Level 1 . | . . . Level 2 . | . . . Level 3 . | . . . Level 4 . | . . . Level 5 . | . . . High Security . | . . . Max Security . | . . . Peak Influence 120 | . 85 120 Initial 20 | . . 20 Average 25 | . 24 43 Influence Increases 266 | . 99 167 Destroy 0b10 Robot/C 140 | . 60 80 Destroy 0b10 Robot/NC 15 | . . 15 Destroy Leader 22 | . 10 12 Successful Hack 21 | . 14 7 Disable Machine 15 | . . 15 Destroy Structure 8 | . . 8 Lose Combat Pursuer 45 | . 15 30 Influence Decreases 186 | . 50 136 Entered New Map 29 | . . 29 Time Decay 137 | . 50 87 Lost Part 20 | . . 20 Squads Dispatched 1 | . . 1 Investigation . | . . . Extermination . | . . . Reinforcement 1 | . . 1 Assault . | . . . Garrison . | . . . Intercept . | . . . Searches Triggered . | . . . Construction Impeded . | . . . Haulers Reinforced . | . . . Active Scanning Responses . | . . . Cargo Convoy Interrupts . | . . . Stealth | -11 -10 -9 --------- Run | Yrd Mat Mat Distress Signals 3 | . . 3 Communications Jammed . | . . . Distress Signals . | . . . Times Spotted 19 | . 4 15 Peak Tracking Total 6 | . 3 6 Tactical Retreats 3 | . 1 2 Traps | -11 -10 -9 ------- Run | Yrd Mat Mat Traps Triggered . | . . . Indirectly . | . . . Trap Hack Attempts . | . . . Triggered . | . . . Disarmed 6 | . . 6 Reprogrammed . | . . . Reused . | . . . Traps Extracted . | . . . Installed . | . . . Triggered . | . . . Machines | -11 -10 -9 ---------- Run | Yrd Mat Mat Machines Disabled 1 | . . 1 Max in Single Turn 1 | . . 1 Machines Repaired . | . . . Machines Dismantled . | . . . Machines Sabotaged . | . . . Overloaded Fab Kills . | . . . Hacking | -11 -10 -9 --------- Run | Yrd Mat Mat Machines Accessed 4 | . 1 3 Terminals 4 | . 1 3 Fabricators . | . . . Repair Stations . | . . . Recycling Units . | . . . Scanalyzers . | . . . Garrison Access . | . . . Total Hacks 13 | . 2 11 Successful 5 | . 1 4 Failed 8 | . 1 7 Catastrophic 1 | . . 1 Database Lockouts . | . . . Manual . | . . . Terminals 13 | . 2 11 Fabricators . | . . . Repair Stations . | . . . Recycling Units . | . . . Scanalyzers . | . . . Garrison Access . | . . . Terminal Hacks 5 | . 1 4 Locate Traps 1 | . . 1 Disarm Traps 1 | . . 1 Surveillance Status 1 | . . 1 Recall Reinforcements 1 | . . 1 Zone Layout 1 | . 1 . Fabricator Hacks . | . . . Repair Station Hacks . | . . . Recycling Unit Hacks . | . . . Scanalyzer . | . . . Garrison Access Hacks . | . . . Unauthorized Hacks . | . . . Terminals . | . . . Fabricators . | . . . Repair Stations . | . . . Recycling Units . | . . . Scanalyzers . | . . . Garrison Access . | . . . Data Cores Recovered . | . . . Used . | . . . Hacking Detections 4 | . 1 3 Full Trace Events 1 | . . 1 Feedback Events . | . . . Feedback Blocked . | . . . Robot Schematics Acquired . | . . . Robots Built . | . . . Authchips . | . . . Time . | . . . Total Robot Build Rating . | . . . Part Schematics Acquired . | . . . Parts Built . | . . . Authchips . | . . . Time . | . . . Total Part Build Rating . | . . . Parts Repaired . | . . . Time . | . . . Parts Recycled . | . . . Recycled Matter . | . . . Retrieved Matter . | . . . Retrieved Components . | . . . Parts Scanalyzed . | . . . Part Schematics Acquired . | . . . Parts Damaged . | . . . Bothacking | -11 -10 -9 ------------ Run | Yrd Mat Mat Used RIF Installer . | . . . Robots Hacked . | . . . Non-combat . | . . . Combat . | . . . Robot Hacks Applied . | . . . Relay Couplers Released . | . . . Fabnet Peak Effective % . | . . . Robots Rewired . | . . . Allies Hacked . | . . . Hacks Repelled . | . . . Allies | -11 -10 -9 -------- Run | Yrd Mat Mat Total Allies . | . . . Largest Group . | . . . Highest-Rated Group . | . . . Highest-Rated Ally . | . . . Total Orders . | . . . Ally Attacks . | . . . Total Damage . | . . . Kills . | . . . Allies Corrupted . | . . . Allies Melted . | . . . Intel | -11 -10 -9 ------- Run | Yrd Mat Mat Active Infowar (turns) 187 | . . 187 Optics 187 | . . 187 Robot Analysis Total . | . . . Derelict Logs Recovered . | . . . Drone Launches . | . . . Drone Recoveries . | . . . Exploration | -11 -10 -9 ------------- Run | Yrd Mat Mat Turns Passed 619 | 138 262 219 Spaces Moved 311 | 83 148 80 Core 9 | 9 . . Treads 278 | 71 148 59 Legs 21 | . . 21 Wheels 3 | 3 . . Hover . | . . . Flight . | . . . Fastest Speed 50 | 50 160 160 Average Speed 162 | 145 160 186 Slowest Speed 260 | 160 160 260 Overloaded Moves . | . . . Propulsion Burnouts . | . . . Robots Hopped . | . . . Potential Cave-ins . | . . . Cave-ins Triggered . | . . . Exploration Rate (%) 16 | 6 33 11 Regions Visited 2 Branch Regions . Pre-discovered Areas . | . . . Known Exits Taken . | . . . Unknown Exits Taken 2 | 1 1 . Scrap Searched . | . . . Spaces Dug . | . . . Terrain Destroyed 7 | . . 7 Melee . | . . . Projectile . | . . . AOE 7 | . . 7 Terrain Rammed . | . . . Walls Destroyed . | . . . Machines Disabled . | . . . Actions | -11 -10 -9 --------- Run | Yrd Mat Mat Total 387 | 101 169 117 Wait 18 | . 8 10 Move 309 | 82 147 80 Hop . | . . . Pick Up 24 | 12 9 3 Fast Attach 2 | . 1 1 Attach 9 | 6 1 2 Detach 1 | 1 . . Swap 2 | . . 2 Drop 3 | . 1 2 Fire 19 | . 2 17 Melee . | . . . Ram . | . . . Kick . | . . . Crush . | . . . Escape Stasis . | . . . Rewire . | . . . Trap . | . . . Miscellaneous . | . . . Route ------- -11/Scrapyard -10/Materials -9/Materials History --------- Turn | Location | Event 24 | -11/Scrapyard | Discovered new exit (range 15) 139 | -11/Scrapyard | Entered Materials 140 | -10/Materials | Met a group of wandering Federalists 314 | -10/Materials | Build established: Mutant 367 | -10/Materials | Discovered new exit (range 4) 401 | -10/Materials | Entered another Materials area 401 | -9/Materials | Evolved 2 slots: Propulsion x2 620 | -9/Materials | Self-destructed Last Messages --------------- 00550_ K-01 Serf collects debris. 00550_ U-05 Engineer lays Concrete. 00561_ K-01 Serf collects debris. 00568_ ALERT: Hostiles spotted, dispatching reinforcements to Terminal M007. 00572_ K-01 Serf collects debris. 00572_ Heat Sink melted. 00572_ G-34 Mercenary destroyed. 00575_ K-01 Serf cleans the Terminal. 00578_ G-34 Mercenary destroyed. 00603_ EM Pulse Gun destroyed. 00618_ O-16 Technician destroyed. 00619_ Fusion Modulator explodes. 00619_ G-47 Trooper destroyed. 00619_ G-34 Mercenary destroyed. 00619_ Fusion Modulator explodes. 00619_ Aluminum Leg destroyed. 00619_ U-05 Engineer destroyed. 00619_ G-34 Mercenary destroyed. 00619_ K-01 Serf collects debris. Map ----- +----------------------------------------------------+ | ?????????# ?????????????????????????????????????? | | ?????????# #?????????????????????????????????????? | | ????????## ##????????????????????????????????????? | | ????##### #????????????????????????????????????? | | ????? T #????????????????????????????????????? | | ????????# #????????????????????????????????????? | | ????????## ##????????????????????????????????????? | | ?????????# #?????????????????????????????????????? | | ?????????# #???????????######????????????????????? | | ?????????# #??????????? ?????????????????????? | | ??????####=#??????????? ??? ????????????????? | | ?#########/##?????????? ?? ??????????????? | | ?# "=%!##?????????? """ k #?????????????? | | ?# %=[##?????????? """ #?????????????? | | ?#! ! %%##??????????# """ #?????????????? | | ?# =##????????### #?????????????? | | ?# ! ##???????? # +?????????????? | | ?# !! #?????????? ; #?????????????? | | ?# =! [ #?????????? ##????????????? | | ?# =%! #######????# ""#???????????? | | ?#######+### %[ ###### ! Y"#???????????? | | ????# % T % ""#???????????? | | ????# [ "" %! #?????????????? | | ????# [ ### !!??????? | | ????######## #####;; k ??????? | | ???????????## ##????#; @ k #?????????????? | | ????????????# #?????#; g #?????????????? | | ????????????# #???? # =;;;###+##?????????????? | | ????????????# #?? ""?# =%### ?????????????????? | | ????????????# # T??# /#??? ???????????????? | | ????????????# # ????# #????? ?????????????? | | ????????????# # ?????+ #?????? ???????????? | | ????????????# #??????# #???????? #??????????? | | ????????????# #??????# #??????????#??????????? | | ????????????# #??????# #?????????????????????? | | ????????????+ #?????? ?????????????????????? | | ????????????# ?????? Y ?????????????????????? | | ????????????# ?????? ?????????????????????? | | ????????????? ??????? ?????????????????????? | | ??????????????????????? #????????????????????? | | ???????????????????????######????????????????????? | | ?????????????????????????????????????????????????? | | ?????????????????????????????????????????????????? | | ?????????????????????????????????????????????????? | | ?????????????????????????????????????????????????? | | ?????????????????????????????????????????????????? | | ?????????????????????????????????????????????????? | | ?????????????????????????????????????????????????? | | ?????????????????????????????????????????????????? | | ?????????????????????????????????????????????????? | +----------------------------------------------------+ Best States ------------- Heat Dissipation 28 Energy Generation 10 Energy Capacity 125 Matter Stores 300 Matter Capacity 300 Sight Range 18 Terrain Scan Density 10 Evasion (%) 50 Recoil Reduction 2 Item Schematics ----------------- None Robot Schematics ------------------ None Fabricated ------------ Nothing Repaired ---------- Nothing Alien Tech Used ----------------- None Achievements -------------- None Challenges ------------ None Game ------ Seed JunkOvertunedOptics Manual? 0 Play Time 00:10:10 Cumulative 32.1 hours Start 2025.05.20 @ 14:36:28 End 2025.05.20 @ 14:50:02 Sessions 1 Manual Loads 0 Difficulty Rogue Special Mode None Game No. 74 Rogue 74 Adventurer 0 Explorer 0 Win Type - Total 0 Types 0/0/0/0/0/0/0/0/0/0 Lore% 15 Gallery% 28 Achievement% 24 Wizard Run 0 Options --------- Layout 1 ASCII 0 Keyboard 0 Movement Mouse Keybinds 0 Fullscreen 2 Font 24/Smallcaps Map View 50x35 Zoom Use 0% Tactical HUD 1 Map Filters NONE Filters NONE Steam 1 RUN: 0fc27ec9-527e-48ce-875c-9a82eb85c257